Cogmind - Beta 13 @@@ ROGUE MODE // 2024.04.17 @ 00:53:13 Player: EYE-VY Result: Destroyed by KP-MTL(R) with Subdweller Machine Gun Performance ------------- Evolutions (0) 0 Regions Visited (2) 400 Robots Destroyed (12) 60 Value Destroyed (353) 353 Prototype IDs (0) 0 Alien Tech Used (0) 0 Bonus (0) 0 TOTAL SCORE: 813 Bonus ------- None Cogmind --------- Core Integrity 0/250 Matter 296/300 Energy 100/100 System Corruption 0% Temperature Cool (0) Movement Walking (190) Ox1 Location -10/Subcaves Parts ------- > --- POWER (1) -------- (None) > --- PROPULSION (2) --- Aluminum Leg > --- UTILITY (2) ------ Medium Storage Unit Structural Scanner > --- WEAPON (2) ------- (None) > --- INVENTORY (10) --- Light Nuclear Core Aluminum Leg Aluminum Leg Improved Heat Sink Improved Terrain Scanner Light Armor Plating Scrap Shield Subdweller Laser Mining Laser Peak State ------------ > --- POWER ------------ Ion Engine > --- PROPULSION ------- Aluminum Leg Aluminum Leg > --- UTILITY ---------- Medium Storage Unit Improved Terrain Scanner > --- WEAPON ----------- Assault Rifle Mining Laser > --- INVENTORY -------- Light Nuclear Core Aluminum Leg Aluminum Leg Improved Heat Sink Structural Scanner Light Armor Plating Scrap Shield Small Laser Assault Rifle [Rating: 10] Favorites ----------- Power Ion Engine Engine Ion Engine Propulsion Aluminum Leg Leg Aluminum Leg Utility Medium Storage Unit Device Structural Scanner Storage Medium Storage Unit Weapon Assault Rifle Ballistic Gun Assault Rifle Special Weapon Mining Laser Build | -11 -10 -10 ------- Run | Yrd Mat Sub Slots Evolved . | . . . Power . | . . . Propulsion . | . . . Utility . | . . . Weapon . | . . . Parts Attached 20 | 7 6 7 Power 3 | 2 . 1 Engine 3 | 2 . 1 Core . | . . . Reactor . | . . . Propulsion 4 | 2 2 . Treads . | . . . Leg 4 | 2 2 . Wheel . | . . . Hover . | . . . Flight . | . . . Utility 5 | 1 2 2 Device 3 | . 1 2 Storage 2 | 1 1 . Processor . | . . . Hackware . | . . . Protection . | . . . Artifact . | . . . Weapon 8 | 2 2 4 Energy Gun . | . . . Energy Cannon . | . . . Ballistic Gun 7 | 2 1 4 Ballistic Cannon . | . . . Launcher . | . . . Special Weapon 1 | . 1 . Impact Weapon . | . . . Slashing Weapon . | . . . Piercing Weapon . | . . . Special Melee Weapon . | . . . Unidentified Prototypes . | . . . Parts Lost 4 | . . 4 Power 1 | . . 1 Propulsion 1 | . . 1 Utility . | . . . Weapon 2 | . . 2 Highest Loss Streak 4 | . . 4 To Critical Strikes . | . . . Average Slot Usage (%) 99 | . 99 99 Engine 14 | . 14 14 Leg 27 | . 28 27 Device 13 | . 13 14 Storage 14 | . 14 14 Ballistic Gun 23 | . 27 18 Special Weapon 4 | . . 9 Naked Turns . | . . . Heaviest Build 24 | 13 20 24 Greatest Support 20 | 20 20 20 Greatest Overweight (x) 2 | . . 2 Average Overweight (x) . | . . . Largest Inventory Capacity 10 | 8 10 10 Average Capacity 9 | 6 9 10 Most Carried 10 | 5 9 10 Average Carried 7 | 2 6 9 Final Capacity 10 | 8 10 10 Final Carried 10 | 2 9 10 Class Distribution -------------------- 61% | Mutant 38% | Scavenger-Mutant Dominant Class ---------------- Mutant | -10/Materials Scavenger-Mutant | -10/Subcaves Resources | -11 -10 -10 ----------- Run | Yrd Mat Sub Matter Collected 578 | 153 315 110 Remotely . | . . . Salvage Created 424 | . 326 98 Parts 30 | . 23 7 Haulers Intercepted . | . . . Recyclers Shooed . | . . . Parts Field Recycled . | . . . Retrieved Matter . | . . . Parts Self-Destructed 2 | . . 2 Prevented . | . . . Kills | -11 -10 -10 ------- Run | Yrd Mat Sub Combat Hostiles Destroyed 10 | . 8 2 Guns 10 | . 8 2 Classes Destroyed 5 | . 4 1 Tunneler 1 | . 1 . Watcher 1 | . 1 . Swarmer 2 | . 2 . Grunt 6 | . 6 . Subdweller 2 | . . 2 Best Kill Streak 3 | . 3 1 Combat Bots Only 2 | . 2 1 Max Kills in Single Turn 1 | . 1 1 Gunslinging . | . . . Exploded . | . . . Melee . | . . . Uniques/NPCs Destroyed . | . . . Combat | -11 -10 -10 -------- Run | Yrd Mat Sub Hostile Shots Fired 84 | . 42 42 Missed 26 | . 12 14 Damage Taken 916 | . 336 580 Core 253 | . 55 198 Absorbed by Shields . | . . . Core Remaining (%) 100 | 100 . . Volleys Fired 53 | . 36 17 Largest 2 | . 2 2 Hottest 100 | . 100 60 Shots Fired 89 | . 70 19 Gun 87 | . 68 19 Cannon . | . . . Launcher . | . . . Special 2 | . 2 . Kinetic 87 | . 68 19 Thermal 2 | . 2 . Explosive . | . . . Electromagnetic . | . . . Robot Hit Streak 14 | . 5 14 Robot Miss Streak 3 | . 3 1 Penetration Max . | . . . Secondary Targets 2 | . 2 . Max Gunslinging Chain 1 | . 1 . Shots Hit Robots 50 | . 33 17 Core Hits 22 | . 18 4 Critical Kills . | . . . Critical Parts Destroyed . | . . . Critical Strikes . | . . . Melee Attacks . | . . . Impact . | . . . Slashing . | . . . Piercing . | . . . Sneak Attacks . | . . . Combat Hostiles . | . . . Follow-up Attacks . | . . . Damage Inflicted 642 | . 393 249 Guns 642 | . 393 249 Cannons . | . . . Explosions . | . . . Melee . | . . . Ramming . | . . . Kinetic 642 | . 393 249 Thermal . | . . . Explosive . | . . . Electromagnetic . | . . . Impact . | . . . Slashing . | . . . Piercing . | . . . Highest Corruption . | . . . Average Corruption . | . . . Corruption Purged . | . . . Corruption Blocked . | . . . Overload Shots . | . . . Overflow Damage . | . . . Projectiles . | . . . Explosions . | . . . Melee . | . . . Knockbacks . | . . . Impact . | . . . Kinetic . | . . . Secondary . | . . . Self-Inflicted Damage . | . . . Shots . | . . . Rammed . | . . . Targets Rammed . | . . . Kicked . | . . . Crushed . | . . . Highest Temperature 20 | . 20 . Average Temperature 9 | . 9 . Received Heat Transfer 252 | . 162 90 Siege Activations . | . . . Robots Corrupted . | . . . Combat Hostiles . | . . . Parts Fried . | . . . Impact Corruptions . | . . . Robots Melted . | . . . Combat Hostiles . | . . . Parts Melted . | . . . Heat Transferred . | . . . Parts Sabotaged . | . . . Parts Stolen . | . . . Parts Stripped . | . . . Power Chain Reactions . | . . . Alert | -11 -10 -10 ------- Run | Yrd Mat Sub Peak Influence 160 | . 160 . Initial . | . . . Average 76 | . 82 . Maximum Alert Level . | . . . Low Security (%) 100 | 100 100 . Level 1 . | . . . Level 2 . | . . . Level 3 . | . . . Level 4 . | . . . Level 5 . | . . . High Security . | . . . Max Security . | . . . Squads Dispatched 1 | . 1 . Investigation . | . . . Extermination . | . . . Reinforcement 1 | . 1 . Assault . | . . . Garrison . | . . . Intercept . | . . . Searches Triggered . | . . . Construction Impeded . | . . . Haulers Reinforced . | . . . Active Scanning Responses . | . . . Cargo Convoy Interrupts . | . . . Stealth | -11 -10 -10 --------- Run | Yrd Mat Sub Distress Signals 1 | . 1 . Communications Jammed . | . . . Distress Signals . | . . . Times Spotted 25 | . 14 11 Peak Tracking Total 6 | . 4 6 Tactical Retreats 4 | . 2 2 Traps | -11 -10 -10 ------- Run | Yrd Mat Sub Traps Triggered . | . . . Indirectly . | . . . Trap Hack Attempts . | . . . Triggered . | . . . Disarmed . | . . . Reprogrammed . | . . . Reused . | . . . Traps Extracted . | . . . Installed . | . . . Triggered 1 | . . 1 Machines | -11 -10 -10 ---------- Run | Yrd Mat Sub Machines Disabled . | . . . Max in Single Turn . | . . . Machines Repaired . | . . . Machines Dismantled . | . . . Machines Sabotaged . | . . . Overloaded Fab Kills . | . . . Hacking | -11 -10 -10 --------- Run | Yrd Mat Sub Machines Accessed 1 | . 1 . Terminals 1 | . 1 . Fabricators . | . . . Repair Stations . | . . . Recycling Units . | . . . Scanalyzers . | . . . Garrison Access . | . . . Total Hacks 3 | . 3 . Successful 3 | . 3 . Failed . | . . . Catastrophic . | . . . Database Lockouts . | . . . Manual . | . . . Terminals 3 | . 3 . Fabricators . | . . . Repair Stations . | . . . Recycling Units . | . . . Scanalyzers . | . . . Garrison Access . | . . . Terminal Hacks 3 | . 3 . Branch Access Points 1 | . 1 . Locate Traps 1 | . 1 . Zone Layout 1 | . 1 . Fabricator Hacks . | . . . Repair Station Hacks . | . . . Recycling Unit Hacks . | . . . Scanalyzer . | . . . Garrison Access Hacks . | . . . Unauthorized Hacks . | . . . Terminals . | . . . Fabricators . | . . . Repair Stations . | . . . Recycling Units . | . . . Scanalyzers . | . . . Garrison Access . | . . . Data Cores Recovered . | . . . Used . | . . . Hacking Detections . | . . . Full Trace Events . | . . . Feedback Events . | . . . Feedback Blocked . | . . . Robot Schematics Acquired . | . . . Robots Built . | . . . Authchips . | . . . Time . | . . . Total Robot Build Rating . | . . . Part Schematics Acquired . | . . . Parts Built . | . . . Authchips . | . . . Time . | . . . Total Part Build Rating . | . . . Parts Repaired . | . . . Time . | . . . Parts Recycled . | . . . Recycled Matter . | . . . Retrieved Matter . | . . . Retrieved Components . | . . . Parts Scanalyzed . | . . . Part Schematics Acquired . | . . . Parts Damaged . | . . . Bothacking | -11 -10 -10 ------------ Run | Yrd Mat Sub Used RIF Installer . | . . . Robots Hacked . | . . . Non-combat . | . . . Combat . | . . . Robot Hacks Applied . | . . . Relay Couplers Released . | . . . Fabnet Peak Effective % . | . . . Robots Rewired . | . . . Allies Hacked . | . . . Hacks Repelled . | . . . Allies | -11 -10 -10 -------- Run | Yrd Mat Sub Total Allies . | . . . Largest Group . | . . . Highest-Rated Group . | . . . Highest-Rated Ally . | . . . Total Orders . | . . . Ally Attacks . | . . . Total Damage . | . . . Kills . | . . . Allies Corrupted . | . . . Allies Melted . | . . . Intel | -11 -10 -10 ------- Run | Yrd Mat Sub Robot Analysis Total . | . . . Derelict Logs Recovered . | . . . Drone Launches . | . . . Drone Recoveries . | . . . Exploration | -11 -10 -10 ------------- Run | Yrd Mat Sub Turns Passed 1448 | 56 710 682 Spaces Moved 547 | 45 306 196 Core 17 | 17 . . Treads . | . . . Legs 530 | 28 306 196 Wheels . | . . . Hover . | . . . Flight . | . . . Fastest Speed 50 | 50 120 120 Average Speed 125 | 93 120 142 Slowest Speed 260 | 120 120 260 Overloaded Moves . | . . . Propulsion Burnouts . | . . . Robots Hopped . | . . . Cave-ins Triggered . | . . . Exploration Rate (%) 16 | 4 37 9 Regions Visited 2 Branch Regions 1 Pre-discovered Areas . | . . . Known Exits Taken . | . . . Unknown Exits Taken 2 | 1 1 . Scrap Searched 5 | . . 5 Spaces Dug 2 | . 2 . Terrain Destroyed 2 | . 2 . Melee . | . . . Projectile 2 | . 2 . AOE . | . . . Terrain Rammed . | . . . Walls Destroyed . | . . . Machines Disabled . | . . . Actions | -11 -10 -10 --------- Run | Yrd Mat Sub Total 1218 | 57 580 581 Wait 567 | . 215 352 Move 545 | 44 305 196 Hop . | . . . Pick Up 22 | 6 13 3 Fast Attach 3 | 2 . 1 Attach 5 | 4 1 . Detach . | . . . Swap 12 | 1 5 6 Drop 11 | . 5 6 Fire 53 | . 36 17 Melee . | . . . Ram . | . . . Kick . | . . . Crush . | . . . Escape Stasis . | . . . Rewire . | . . . Trap . | . . . Miscellaneous . | . . . Route ------- -11/Scrapyard -10/Materials (discovered 3 exits: *Min x2 / [*Sub]) -10/Subcaves History --------- Turn | Location | Event 8 | -11/Scrapyard | Discovered new exit (range 15) 57 | -11/Scrapyard | Entered Materials 169 | -10/Materials | Discovered new exit (range 8) 301 | -10/Materials | Build established: Mutant 570 | -10/Materials | Discovered new exit (range 5) 598 | -10/Materials | Discovered new exit (range 22) 602 | -10/Materials | Identified exit to Mines 767 | -10/Materials | Entered Subcaves 1074 | -10/Subcaves | Build established: Scavenger-Mutant 1220 | -10/Subcaves | Ambushed by swarm of Subdwellers 1227 | -10/Subcaves | Ambushed by Subdwellers from Twisted Machinery 1431 | -10/Subcaves | Core integrity fell below 50% 1449 | -10/Subcaves | Core integrity fell below 20% 1449 | -10/Subcaves | Destroyed by KP-MTL(R) with Subdweller Machine Gun Last Messages --------------- Subatomizers dissect the Disposable Heat Sink. Searching scrap... Found Mak. System Shield. Found Sub. Machine Gun. Found 24 Matter. Searching scrap... Found Battle Rifle. Found Flamer. Found 19 Matter. Dropped Assault Rifle. 37-UXC(R) destroyed. Acquired 15 matter. Dropped Sub. Machine Gun. Dropped Assault Rifle. Acquired Sub. Machine Gun. Subatomizers dissect the Assault Rifle. Aluminum Leg destroyed. Sub. Machine Gun destroyed. Ion Engine destroyed. Sub. Machine Gun destroyed. Map ----- +----------------------------------------------------+ | ????????????????????????????????????????????????? | | ????????????????????????????????????????????????? | | ????????????????????????????????????????????????? | | ????????????????????????????????????????????????? | | ????????????????????????????????????????????????? | | ???????????????????????############?????????????? | | ???????????????????????############?????????????? | | ???????????????????????## ###"##"#"?????????????? | | ?????????????????????##### " """"?????????????? | | ?????????????????????#### # " """" ????????????? | | ?????????????????###### ## ####"## ????????????? | | ????????????????####### ########????????????? | | ????????????????### ## #######"??????????? | | ????????????????## " #### # " " "???? | | ????????????????## " " " ##?????? | | ????????????????### " """ " " ###?????? | | ??????????????######### "#### ##"#####??????? | | ??????????????#########RRR ###############??????? | | ??????????????## #### R####?####????????????? | | ??????????????## #### ###??????????????????? | | ??????????????### ### "##??????????????????? | | ??????????????### ### #"##??????????????????? | | ??????????????### ###########???????????? | | ??????????????## ############???????????? | | ??????????????## #### ##???????????? | | ????????######## @#### ###???????????? | | ???????######### #### ###????????????? | | ???????###!%"## ### ###????????????? | | ???????##"[#&#< ## ###????????????? | | ???????##%[#& [ ##????????????? | | ???????##|"#!#< ##????????????? | | ???????##%#### ## ##????????????? | | ???????######### ## ## ##????????????? | | ???????######## #### # ###????????????? | | ?????????????## #### ##???????????????? | | ?????????????## #### ##???????????????? | | ?????????????### #### ##???????????????# | | ?????????????##### ######## ##??????????????#? | | ??????????????###### #### ###???????????????# | | ??????????????##### ## ####?????????????#?? | | ??????????????## ###???????????????#? | | ??????????????## ## ###?????????????????? | | ??????????????## ????#### ###???????????????##? | | ??????????????????????### ##???????????????#?# | | ???????????????????????## ##??????????????#??# | | ???????????????????????### # ###????????????????? | | ???????????????????????##### ####???????????#???# | | ????????????????????????##### ####???????????#?#? | | ??????????????????????????####!###???????????#??? | | ??????????????????????????## ##*##???????????#?## | +----------------------------------------------------+ Best States ------------- Heat Dissipation 25 Energy Generation 10 Energy Capacity 250 Matter Stores 300 Matter Capacity 300 Sight Range 16 Terrain Scan Range 16 Terrain Scan Density 10 Evasion (%) 55 Item Schematics ----------------- None Robot Schematics ------------------ None Fabricated ------------ Nothing Alien Tech Used ----------------- None Achievements -------------- None Challenges ------------ None Game ------ Seed PortableDefenseMediator Manual? 0 Play Time 00:14:28 Cumulative 13.9 hours Start 2024.04.17 @ 00:39:16 End 2024.04.17 @ 00:53:13 Sessions 1 Manual Loads 0 Difficulty Rogue Special Mode None Game No. 14 Rogue 14 Adventurer 0 Explorer 0 Win Type - Total 0 Types 0/0/0/0/0/0/0/0/0 Lore% 18 Gallery% 21 Achievement% 17 Wizard Run 0 Options --------- Layout 1 ASCII 0 Keyboard 0 Movement Mouse Keybinds 0 Fullscreen 1 Font 24/Smallcaps Map View 50x35 Zoom Use 0% Tactical HUD 0 Map Filters NONE Filters NONE Steam 1 RUN: e27691ad-999d-4a80-8eeb-8688198e56ed